fUST/lending_fUST_20250223
["ID","MTS","AMOUNT","RATE_DAILY","PERIOD"]
[354118948,1740258635879,-500.0,0.0001378,2]
[354118950,1740258635888,-500.0,0.0001378,2]
[354118952,1740258635898,-500.0,0.0001378,2]
[354118953,1740258635907,-595.38,0.0001378,2]
[354118955,1740258635916,-1017.4,0.00013862,2]
[354118958,1740258635925,-500.0,0.00013863,2]
[354118960,1740258635934,-500.0,0.00013863,2]
[354118961,1740258635944,-516.16,0.00013863,2]
[354118964,1740258635954,-500.0,0.00013863,2]
[354118966,1740258635963,-12280.78,0.00013863,2]
[354118967,1740258635973,-500.0,0.00013863,2]
[354118969,1740258635983,-595.8,0.00013863,2]
[354118971,1740258635992,-500.0,0.00013863,2]
[354118973,1740258636001,-157.46,0.00013863,2]
[354118975,1740258636010,-500.0,0.00013863,2]
[354118977,1740258636020,-733.3,0.00013863,2]
[354118979,1740258636029,-500.0,0.00013863,2]
[354118981,1740258636038,-500.0,0.00013863,2]
[354118983,1740258636048,-500.0,0.00013863,2]
[354118986,1740258636057,-500.0,0.00013863,2]
[354118988,1740258636067,-500.0,0.00013863,2]
[354118990,1740258636076,-2900.0,0.0001389,2]
[354118991,1740258636085,-1017.4,0.00013944,2]
[354118993,1740258636095,-500.0,0.00013945,2]
[354118995,1740258636104,-605.17,0.00013945,2]
[354118997,1740258636114,-12280.78,0.00013945,2]
[354119000,1740258636125,-500.0,0.00013945,2]
[354119002,1740258636135,-595.8,0.00013945,2]
[354119004,1740258636144,-385.99,0.00013945,2]
[354119005,1740258636154,-500.0,0.00013945,2]
[354119007,1740258636163,-733.3,0.00013945,2]
[354119009,1740258636173,-500.0,0.00013945,2]
[354119010,1740258636183,-500.0,0.00013945,2]
[354119011,1740258636192,-500.0,0.00013945,2]
[354119012,1740258636203,-500.0,0.00013945,2]
[354119013,1740258636212,-500.0,0.00013945,2]
[354119014,1740258636222,-1000.0,0.00014,14]
[354119015,1740258636231,-1017.4,0.00014026,2]
[354119016,1740258636240,-544.88,0.00014027,2]
[354119017,1740258636250,-12280.78,0.00014027,2]
[354119018,1740258636259,-500.0,0.00014027,2]
[354119019,1740258636269,-595.8,0.00014027,2]
[354119020,1740258636278,-500.0,0.00014027,2]
[354119021,1740258636289,-733.3,0.00014027,2]
[354119022,1740258636304,-500.0,0.00014027,2]
[354119023,1740258636314,-500.0,0.00014027,2]
[354119024,1740258636324,-500.0,0.00014027,2]
[354119026,1740258636334,-348.83,0.00014027,2]
[354119028,1740258636344,-500.0,0.00014027,2]
[354119030,1740258636353,-500.0,0.00014108,2]
[354119032,1740258636362,-488.72,0.00014108,2]
[354119034,1740258636374,-1605.83381408,0.00014109,2]
[354119043,1740258636442,-291.37338982,0.00014109,2]
[354119166,1740258638241,-301.79,0.00013697,2]
[354119178,1740258640656,-198.21,0.00013697,2]
[354119179,1740258640667,-390.86704859,0.00013697,2]
[354119180,1740258640678,-168.99835787,0.00013697,2]
[354119181,1740258640688,-500.0,0.00013697,2]
[354119182,1740258640700,-500.0,0.00013697,2]
[354119183,1740258640710,-402.64312973,0.00013697,2]
[354119184,1740258640722,-626.29095789,0.00013697,2]
[354119185,1740258640733,-500.0,0.00013698,2]
[354119186,1740258640743,-500.0,0.00013698,2]
[354119187,1740258640753,-10383.5727961,0.00014109,2]
[354119188,1740258640762,-500.0,0.00014109,2]
[354119189,1740258640772,-595.8,0.00014109,2]
[354119190,1740258640783,-500.0,0.00014109,2]
[354119191,1740258640793,-733.3,0.00014109,2]
[354119192,1740258640805,-500.0,0.00014109,2]
[354119193,1740258640818,-500.0,0.00014109,2]
[354119194,1740258640829,-500.0,0.00014109,2]
[354119195,1740258640841,-500.0,0.00014109,2]
[354119196,1740258640851,-1017.4,0.0001419,2]
[354119197,1740258640861,-12280.78,0.00014191,2]
[354119198,1740258640871,-500.0,0.00014191,2]
[354119199,1740258640882,-595.8,0.00014191,2]
[354119200,1740258640892,-500.0,0.00014191,2]
[354119201,1740258640904,-733.3,0.00014191,2]
[354119202,1740258640915,-500.0,0.00014191,2]
[354119203,1740258640925,-500.0,0.00014191,2]
[354119204,1740258640936,-486.02,0.00014191,2]
[354119205,1740258640947,-500.0,0.00014191,2]
[354119206,1740258640956,-12280.78,0.00014273,2]
[354119207,1740258640967,-500.0,0.00014273,2]
[354119208,1740258640978,-595.8,0.00014273,2]
[354119209,1740258640988,-500.0,0.00014273,2]
[354119210,1740258640998,-733.3,0.00014273,2]
[354119211,1740258641008,-500.0,0.00014273,2]
[354119212,1740258641019,-500.0,0.00014273,2]
[354119213,1740258641029,-500.0,0.00014273,2]
[354119214,1740258641039,-1017.4,0.00014355,2]
[354119215,1740258641049,-12280.78,0.00014356,2]
[354119216,1740258641060,-500.0,0.00014356,2]
[354119217,1740258641072,-595.8,0.00014356,2]
[354119218,1740258641083,-500.0,0.00014356,2]
[354119219,1740258641094,-733.3,0.00014356,2]
[354119220,1740258641104,-500.0,0.00014356,2]
[354119221,1740258641117,-500.0,0.00014356,2]
[354119222,1740258641128,-500.0,0.00014356,2]
[354119223,1740258641139,-12280.78,0.00014438,2]
[354119224,1740258641151,-596.0,0.00014438,2]
[354119225,1740258641161,-595.8,0.00014438,2]
[354119226,1740258641171,-500.0,0.00014438,2]
[354119227,1740258641182,-733.3,0.00014438,2]
[354119228,1740258641192,-500.0,0.00014438,2]
[354119229,1740258641202,-500.0,0.00014438,2]
[354119230,1740258641212,-500.0,0.00014438,2]
[354119231,1740258641224,-500.0,0.00014473,2]
[354119232,1740258641235,-500.0,0.00014497,2]
[354119233,1740258641247,-1017.4,0.00014497,2]
[354119234,1740258641258,-1017.4,0.00014497,2]
[354119235,1740258641269,-7547.30814613,0.00014498,2]
[354119236,1740258641280,-500.0,0.00014498,2]
[354119237,1740258641291,-500.0,0.00014498,2]
[354119238,1740258641304,-500.0,0.00014498,2]
[354119239,1740258641315,-500.0,0.00014498,2]
[354119240,1740258641325,-500.0,0.00014498,2]
[354119241,1740258641335,-500.0,0.00014498,2]
[354119242,1740258641345,-500.0,0.00014498,2]
[354119243,1740258641357,-1017.4,0.00014498,2]
[354119244,1740258641368,-1017.4,0.00014498,2]
[354119245,1740258641377,-165.87544267,0.00014499,2]
[354119246,1740258641387,-500.0,0.00014499,2]
[354119247,1740258641396,-500.0,0.00014499,2]
[354119248,1740258641514,-500.0,0.00014499,2]
[354119249,1740258641527,-500.0,0.00014499,2]
[354119250,1740258641536,-500.0,0.00014499,2]
[354119251,1740258641545,-500.0,0.00014499,2]
[354119252,1740258641554,-267.03093373,0.00014499,2]
[354119253,1740258641563,-500.0,0.00014499,2]
[354119254,1740258641572,-500.0,0.00014499,2]
[354119255,1740258641581,-610.36727448,0.00014499,2]
[354119256,1740258641590,-500.60053688,0.00014499,2]
[354119257,1740258641599,-500.0,0.00014499,2]
[354119258,1740258641608,-500.0,0.00014499,2]
[354119259,1740258641616,-500.0,0.00014499,2]
[354119260,1740258641627,-500.43442574,0.00014499,2]
[354119261,1740258641637,-500.0,0.00014499,2]
[354119262,1740258641646,-500.0,0.00014499,2]
[354119263,1740258641655,-500.0,0.00014499,2]
[354119264,1740258641664,-500.0,0.00014499,2]
[354119265,1740258641674,-303.42940542,0.00014499,2]
[354119266,1740258641683,-500.0,0.00014499,2]
[354119267,1740258641694,-500.0,0.00014499,2]
[354119268,1740258641704,-500.0,0.00014499,2]
[354119269,1740258641714,-298.05208723,0.00014499,2]
[354119270,1740258641725,-501.44079961,0.00014499,2]
[354119271,1740258641735,-500.0,0.00014499,2]
[354119272,1740258641744,-537.00279411,0.00014499,2]
[354119273,1740258641753,-561.90595037,0.00014499,2]
[354119274,1740258641762,-500.96141064,0.00014499,2]
[354119275,1740258641772,-500.0,0.00014499,2]
[354119276,1740258641782,-500.0,0.00014499,2]
[354119277,1740258641792,-500.0,0.00014499,2]
[354119278,1740258641803,-506.63197537,0.00014499,2]
[354119279,1740258641814,-500.0,0.00014499,2]
[354119280,1740258641824,-500.0,0.00014499,2]
[354119281,1740258641834,-500.0,0.00014499,2]
[354119282,1740258641843,-500.0,0.00014499,2]
[354119283,1740258641853,-500.0,0.00014499,2]
[354119284,1740258641862,-489.72255846,0.00014499,2]
[354119285,1740258641871,-500.0,0.00014499,2]
[354119286,1740258641880,-598.41002145,0.00014499,2]
[354119287,1740258641890,-500.0,0.00014499,2]
[354119288,1740258641899,-500.0,0.00014499,2]
[354119289,1740258641908,-500.0,0.00014499,2]
[354119290,1740258641917,-500.0,0.00014499,2]
[354119291,1740258641926,-500.0,0.00014499,2]
[354119292,1740258641936,-500.0,0.00014499,2]
[354119293,1740258641945,-500.0,0.00014499,2]
[354119294,1740258641954,-500.0,0.00014499,2]
[354119295,1740258641963,-500.0,0.00014499,2]
[354119296,1740258641972,-151.608241,0.00014499,2]
[354119297,1740258641982,-501.36615242,0.00014499,2]
[354119298,1740258641991,-500.0,0.00014499,2]
[354119299,1740258642000,-500.0,0.00014499,2]
[354119300,1740258642010,-1017.4,0.00014499,2]
[354119301,1740258642020,-503.63709508,0.000145,2]
[354119302,1740258642029,-500.0,0.000145,2]
[354119303,1740258642039,-500.0,0.000145,2]
[354119304,1740258642048,-500.0,0.000145,2]
[354119305,1740258642057,-500.0,0.000145,2]
[354119306,1740258642067,-579.38244099,0.000145,2]
[354119307,1740258642076,-500.0,0.000145,2]
[354119308,1740258642086,-505.82746448,0.000145,2]
[354119309,1740258642095,-507.95836277,0.000145,2]
[354119310,1740258642105,-500.0,0.000145,2]
[354119311,1740258642114,-513.78827645,0.000145,2]
[354119312,1740258642124,-500.0,0.000145,2]
[354119313,1740258642134,-596.827152,0.000145,2]
[354119314,1740258642144,-500.0,0.000145,2]
[354119315,1740258642155,-500.41883245,0.000145,2]
[354119316,1740258642165,-500.0,0.000145,2]
[354119317,1740258642176,-500.0,0.000145,2]
[354119318,1740258642185,-500.0,0.000145,2]
[354119319,1740258642195,-500.0,0.000145,2]
[354119320,1740258642205,-500.95597778,0.000145,2]
[354119321,1740258642215,-1017.4,0.00014509,2]
[354119322,1740258642224,-12924.89674434,0.0001451,2]
[354119323,1740258642233,-12280.78,0.0001452,2]
[354119324,1740258642242,-595.8,0.0001452,2]
[354119325,1740258642252,-500.0,0.0001452,2]
[354119326,1740258642262,-733.3,0.0001452,2]
[354119327,1740258642271,-500.0,0.0001452,2]
[354119328,1740258642281,-500.0,0.0001452,2]
[354119329,1740258642293,-500.0,0.0001452,2]
[354119330,1740258642306,-500.0,0.00014572,2]
[354119331,1740258642316,-620.51141416,0.00014579,2]
[354119332,1740258642326,-163.10639993,0.00014579,2]
[354119333,1740258642335,-500.0,0.0001458,2]
[354119334,1740258642346,-500.0,0.0001458,2]
[354119335,1740258642355,-500.0,0.0001458,2]
[354119336,1740258642365,-500.0,0.0001458,2]
[354119337,1740258642377,-500.0,0.0001458,2]
[354119338,1740258642387,-507.31321814,0.00014581,2]
[354119339,1740258642396,-500.0,0.00014581,2]
[354119340,1740258642405,-500.0,0.00014581,2]
[354119341,1740258642415,-1017.4,0.00014601,2]
[354119342,1740258642424,-12280.78,0.00014602,2]
[354119343,1740258642433,-595.8,0.00014602,2]
[354119344,1740258642443,-500.0,0.00014602,2]
[354119345,1740258642452,-733.3,0.00014602,2]
[354119346,1740258642462,-500.0,0.00014602,2]
[354119347,1740258642472,-500.0,0.00014602,2]
[354119348,1740258642481,-500.0,0.00014602,2]
[354119349,1740258642490,-164.19924424,0.00014604,2]
[354119350,1740258642499,-500.0,0.00014662,2]
[354119351,1740258642509,-500.0,0.00014663,2]
[354119352,1740258642519,-1017.4,0.00014683,2]
[354119353,1740258642528,-12280.78,0.00014684,2]
[354119354,1740258642538,-595.8,0.00014684,2]
[354119355,1740258642547,-500.0,0.00014684,2]
[354119356,1740258642557,-733.3,0.00014684,2]
[354119357,1740258642566,-500.0,0.00014684,2]
[354119358,1740258642576,-500.0,0.00014684,2]
[354119359,1740258642585,-500.0,0.00014684,2]
[354119360,1740258642595,-500.0,0.00014744,2]
[354119361,1740258642604,-12280.78,0.00014767,2]
[354119362,1740258642613,-595.8,0.00014767,2]
[354119363,1740258642623,-500.0,0.00014767,2]
[354119364,1740258642632,-733.3,0.00014767,2]
[354119365,1740258642642,-500.0,0.00014767,2]
[354119366,1740258642652,-500.0,0.00014767,2]
[354119367,1740258642662,-500.0,0.00014767,2]
[354119368,1740258642672,-500.0,0.00014827,2]
[354119369,1740258642682,-500.0,0.00014827,2]
[354119370,1740258642692,-1017.4,0.00014848,2]
[354119371,1740258642701,-151.0,0.00014849,2]
[354119372,1740258642711,-151.0,0.00014849,2]
[354119373,1740258642720,-12280.78,0.00014849,2]
[354119374,1740258642730,-595.8,0.00014849,2]
[354119375,1740258642740,-289.2,0.00014849,2]
[354119376,1740258642749,-289.2,0.00014849,2]
[354119377,1740258642759,-151.0,0.00014849,2]
[354119378,1740258642770,-151.0,0.00014849,2]
[354119379,1740258642780,-500.0,0.00014849,2]
[354119380,1740258642790,-733.3,0.00014849,2]
[354119381,1740258642800,-500.0,0.00014849,2]
[354119382,1740258642811,-500.0,0.00014849,2]
[354119383,1740258642821,-151.0,0.00014849,2]
[354119384,1740258642831,-500.0,0.00014849,2]
[354119385,1740258642841,-624.11115498,0.000149,2]
[354119386,1740258642853,-369.21,0.00014909,2]
[354119387,1740258642863,-338.005,0.00014911,2]
[354119388,1740258642874,-12280.78,0.00014931,2]
[354119389,1740258642885,-595.8,0.00014931,2]
[354119390,1740258642894,-500.0,0.00014931,2]
[354119392,1740258642904,-733.3,0.00014931,2]
[354119394,1740258642914,-500.0,0.00014931,2]
[354119396,1740258642923,-500.0,0.00014931,2]
[354119398,1740258642932,-500.0,0.00014931,2]
[354119400,1740258642943,-188.82039999,0.00014991,2]
[354119402,1740258642953,-1000.0,0.00015,15]
[354119404,1740258642963,-1000.0,0.00015,7]
[354119405,1740258642973,-1017.4,0.00015012,2]
[354119406,1740258642983,-1017.4,0.00015012,2]
[354119407,1740258642993,-1017.4,0.00015012,2]
[354119408,1740258643004,-1017.4,0.00015012,2]
[354119409,1740258643013,-1017.45564753,0.00015012,2]
[354119410,1740258643023,-12280.78,0.00015013,2]
[354119411,1740258643033,-595.8,0.00015013,2]
[354119412,1740258643042,-500.0,0.00015013,2]
[354119413,1740258643052,-733.3,0.00015013,2]
[354119414,1740258643062,-564.28,0.00015013,2]
[354119415,1740258643072,-500.0,0.00015013,2]
[354119416,1740258643082,-500.0,0.00015013,2]
[354119417,1740258643092,-180.0,0.00015071,2]
[354119418,1740258643101,-12280.78,0.00015095,2]
[354119419,1740258643111,-595.8,0.00015095,2]
[354119421,1740258643121,-500.0,0.00015095,2]
[354119422,1740258643131,-733.3,0.00015095,2]
[354119423,1740258643141,-500.0,0.00015095,2]
[354119424,1740258643151,-500.0,0.00015095,2]
[354119425,1740258643161,-202.88847706,0.00015158,2]
[354119426,1740258643171,-12280.78,0.00015178,2]
[354119427,1740258643181,-595.8,0.00015178,2]
[354119428,1740258643191,-500.0,0.00015178,2]
[354119429,1740258643201,-733.3,0.00015178,2]
[354119430,1740258643210,-500.0,0.00015178,2]
[354119431,1740258643220,-500.0,0.00015178,2]
[354119432,1740258643230,-12280.78,0.0001526,2]
[354119433,1740258643239,-595.8,0.0001526,2]
[354119434,1740258643249,-500.0,0.0001526,2]
[354119435,1740258643259,-733.3,0.0001526,2]
[354119436,1740258643268,-500.0,0.0001526,2]
[354119437,1740258643277,-500.0,0.0001526,2]
[354119438,1740258643287,-12280.78,0.00015342,2]
[354119439,1740258643303,-595.8,0.00015342,2]
[354119440,1740258643313,-500.0,0.00015342,2]
[354119441,1740258643323,-733.3,0.00015342,2]
[354119442,1740258643333,-500.0,0.00015342,2]
[354119443,1740258643343,-500.0,0.00015342,2]
[354119444,1740258643352,-537.24031828,0.00015395,2]
[354119445,1740258643362,-12280.78,0.00015424,2]
[354119446,1740258643372,-595.8,0.00015424,2]
[354119447,1740258643382,-500.0,0.00015424,2]
[354119448,1740258643392,-733.3,0.00015424,2]
[354119449,1740258643402,-316.54,0.00015424,2]
[354119450,1740258643411,-577.69,0.00015424,2]
[354119451,1740258643420,-151.0,0.00015506,2]
[354119452,1740258643430,-12280.78,0.00015506,2]
[354119453,1740258643439,-595.8,0.00015506,2]
[354119454,1740258643449,-289.2,0.00015506,2]
[354119455,1740258643459,-289.2,0.00015506,2]
[354119456,1740258643469,-151.0,0.00015506,2]
[354119457,1740258643479,-184.41,0.00015506,2]
[354119458,1740258643489,-733.3,0.00015506,2]
[354119459,1740258643498,-500.0,0.00015528,2]
[354119460,1740258643507,-12280.92502034,0.00015589,2]
[354119461,1740258643516,-596.01,0.00015589,2]
[354119462,1740258643526,-733.53935907,0.00015589,2]
[354119463,1740258643535,-151.0,0.00015589,2]
[354119464,1740258643544,-396.0,0.00015762,2]
[354119465,1740258643554,-244.392521,0.00015775,2]
[354119466,1740258643563,-500.3286748,0.00015776,2]
[354119467,1740258643572,-2405.71934559,0.00015898,3]
[354119468,1740258643582,-1000.0,0.00016,16]
[354119469,1740258643591,-1000.0,0.00016076,2]
[354119470,1740258643601,-151.0,0.000161,2]
[354119471,1740258643611,-499.0,0.00016164,2]
[354119472,1740258643620,-154.796407,0.00016192,2]
[354119473,1740258643629,-557.2941539,0.00016192,2]
[354119474,1740258643638,-13278.19900895,0.00016265,2]
[354119475,1740258643648,-3000.0,0.000164,2]
[354119476,1740258643657,-154.331348,0.000164,2]
[354119477,1740258643667,-174.91972348,0.000164,2]
[354119478,1740258643676,-6246.69211354,0.000164,2]
[354119479,1740258643686,-150.0,0.00016433,2]
[354119480,1740258643695,-1970.0,0.00016433,2]
[354119481,1740258643705,-538.0,0.00016433,2]
[354119482,1740258643714,-2287.0,0.00016433,2]
[354119483,1740258643723,-500.0,0.00016473,2]
[354119484,1740258643733,-445.94572311,0.0001649,2]
[354119485,1740258643743,-312.05557749,0.0001649,2]
[354119486,1740258643752,-42163.5531667,0.000165,5]
[354119487,1740258643761,-20343.05768082,0.000165,5]
[354119488,1740258643771,-415437.66141733,0.000165,8]
[354119489,1740258643838,-1401.69703633,0.000165,8]
[354119490,1740258643850,-2091.4018282,0.000165,8]
[354119491,1740258643865,-938.364,0.000165,8]
[354119534,1740259531055,-150.0,9.041e-05,2]
[354119539,1740259626109,1000.0,0.00019,120]
[354119540,1740259691782,-150.0,8.951e-05,2]
[354119541,1740259713008,1098.07016083,0.00018168,90]
[354119542,1740259720200,2250.0,0.00012,30]
[354119543,1740259772105,-12.23576931,8.951e-05,2]
[354119544,1740259772126,-99.349946,9.041e-05,2]
[354119545,1740259772147,-40.56574104,0.00010666,2]
[354119560,1740259832557,-120.99598686,0.00010666,2]
[354119561,1740259832567,-2100.0,0.00010876,2]
[354119562,1740259832576,-719.18,0.00010959,2]
[354119563,1740259832585,-535.9238181,0.00010988,2]
[354119564,1740259832595,-250.0,0.00011267,2]
[354119565,1740259832604,-300.0,0.00012218,2]
[354119566,1740259832613,-55290.96535208,0.00012219,2]
[354119567,1740259832629,-3552.66310872,0.00012219,2]
[354119568,1740259832638,-2100.0,0.00012246,2]
[354119569,1740259832647,-413.9768661,0.00012386,2]
[354119572,1740259832657,-180.0,0.0001341,2]
[354119573,1740259832667,-2100.0,0.00013616,2]
[354119574,1740259832681,-500.0,0.00013673,2]
[354119575,1740259832691,-537.24031828,0.00013673,2]
[354119576,1740259832702,-500.0,0.00013673,2]
[354119577,1740259832712,-202.88847706,0.00013673,2]
[354119578,1740259832723,-500.3286748,0.00013673,2]
[354119579,1740259832733,-500.0,0.00013698,2]
[354119580,1740259832842,-500.0,0.00013698,2]
[354119581,1740259832852,-500.0,0.00013698,2]
[354119582,1740259832861,-500.0,0.00013698,2]
[354119583,1740259832870,-500.0,0.00013698,2]
[354119584,1740259832880,-500.0,0.00013698,2]
[354119585,1740259832889,-505.12203579,0.00013698,2]
[354119586,1740259832898,-355.89651006,0.00013698,2]
[354119587,1740259832908,-500.0,0.00013698,2]
[354119588,1740259832918,-500.0,0.00013698,2]
[354119589,1740259832927,-456.27296596,0.00013698,2]
[354119590,1740259832936,-502.93496274,0.00013698,2]
[354119591,1740259832946,-500.0,0.00013698,2]
[354119592,1740259832955,-500.0,0.00013698,2]
[354119593,1740259832965,-502.62087509,0.00013698,2]
[354119594,1740259832974,-500.0,0.00013698,2]
[354119595,1740259832983,-500.0,0.00013698,2]
[354119596,1740259832992,-500.0,0.00013698,2]
[354119597,1740259833001,-500.0,0.00013698,2]
[354119598,1740259833010,-500.0,0.00013698,2]
[354119599,1740259833019,-500.0,0.00013698,2]
[354119600,1740259833029,-516.7648298,0.00013698,2]
[354119601,1740259833038,-500.0,0.00013698,2]
[354119602,1740259833047,-321.76369117,0.00013698,2]
[354119603,1740259833056,-500.0,0.00013698,2]
[354119604,1740259833066,-500.0,0.00013698,2]
[354119605,1740259833075,-507.82152645,0.00013698,2]
[354119606,1740259833085,-500.0,0.00013698,2]
[354119607,1740259833095,-512.72007622,0.00013698,2]
[354119608,1740259833104,-309.70583106,0.00013698,2]
[354119609,1740259833113,-509.35448482,0.00013698,2]
[354119610,1740259833122,-500.0,0.00013698,2]
[354119611,1740259833131,-500.0,0.00013698,2]
[354119612,1740259833140,-500.0,0.00013698,2]
[354119613,1740259833149,-500.0,0.00013698,2]
[354119614,1740259833160,-500.0,0.00013698,2]
[354119615,1740259833169,-500.0,0.00013698,2]
[354119616,1740259833179,-500.0,0.00013698,2]
[354119617,1740259833189,-500.0,0.00013698,2]
[354119618,1740259833199,-500.0,0.00013698,2]
[354119619,1740259833208,-500.0,0.00013698,2]
[354119620,1740259833218,-500.0,0.00013698,2]
[354119621,1740259833227,-500.0,0.00013698,2]
[354119622,1740259833236,-500.0,0.00013698,2]
[354119623,1740259833246,-500.0,0.00013698,2]
[354119624,1740259833255,-388.91692074,0.00013698,2]
[354119625,1740259833265,-500.0,0.00013698,2]
[354119626,1740259833274,-500.0,0.00013698,2]
[354119627,1740259833284,-630.41,0.00013698,2]
[354119628,1740259833304,-500.0,0.00013698,2]
[354119629,1740259833316,-500.0,0.00013698,2]
[354119630,1740259833327,-500.0,0.00013698,2]
[354119631,1740259833337,-500.0,0.00013698,2]
[354119632,1740259833348,-500.0,0.00013698,2]
[354119633,1740259833359,-500.0,0.00013698,2]
[354119634,1740259833369,-500.0,0.00013698,2]
[354119635,1740259833380,-500.0,0.00013698,2]
[354119636,1740259833391,-500.0,0.00013698,2]
[354119637,1740259833401,-500.0,0.00013698,2]
[354119638,1740259833413,-500.0,0.00013698,2]
[354119639,1740259833422,-500.0,0.00013698,2]
[354119640,1740259833432,-500.0,0.00013698,2]
[354119641,1740259833441,-500.0,0.00013698,2]
[354119642,1740259833451,-500.0,0.00013698,2]
[354119643,1740259833462,-500.0,0.00013698,2]
[354119644,1740259833472,-503.42881826,0.00013698,2]
[354119645,1740259833482,-500.0,0.00013698,2]
[354119646,1740259833492,-500.0,0.00013698,2]
[354119647,1740259833502,-500.0,0.00013698,2]
[354119648,1740259833511,-500.0,0.00013698,2]
[354119649,1740259833521,-500.0,0.00013698,2]
[354119650,1740259833532,-500.0,0.00013698,2]
[354119651,1740259833542,-500.0,0.00013698,2]
[354119652,1740259833551,-500.0,0.00013698,2]
[354119653,1740259833561,-561.19,0.00013698,2]
[354119654,1740259833571,-500.0,0.00013698,2]
[354119655,1740259833582,-500.0,0.00013698,2]
[354119656,1740259833592,-500.0,0.00013698,2]
[354119657,1740259833602,-500.0,0.00013698,2]
[354119658,1740259833611,-518.62,0.00013698,2]
[354119659,1740259833622,-500.0,0.00013698,2]
[354119660,1740259833632,-500.0,0.00013698,2]
[354119661,1740259833643,-500.0,0.00013698,2]
[354119662,1740259833653,-500.0,0.00013698,2]
[354119663,1740259833665,-500.0,0.00013698,2]
[354119664,1740259833680,-500.0,0.00013698,2]
[354119665,1740259833692,-500.0,0.00013698,2]
[354119666,1740259833703,-500.0,0.00013698,2]
[354119667,1740259833712,-500.0,0.00013698,2]
[354119668,1740259833723,-500.0,0.00013698,2]
[354119669,1740259833732,-165.87544267,0.00013698,2]
[354119670,1740259833743,-500.0,0.00013698,2]
[354119671,1740259833752,-500.0,0.00013698,2]
[354119672,1740259833763,-500.0,0.00013698,2]
[354119673,1740259833773,-500.0,0.00013698,2]
[354119674,1740259833782,-500.0,0.00013698,2]
[354119675,1740259833792,-500.0,0.00013698,2]
[354119676,1740259833801,-500.0,0.00013698,2]
[354119677,1740259833810,-500.0,0.00013698,2]
[354119678,1740259833819,-678.26,0.00013698,2]
[354119679,1740259833829,-678.26,0.00013698,2]
[354119680,1740259833839,-678.26,0.00013698,2]
[354119681,1740259833848,-678.26,0.00013698,2]
[354119682,1740259833858,-500.0,0.00013698,2]
[354119683,1740259833867,-678.26,0.00013698,2]
[354119684,1740259833877,-678.26,0.00013698,2]
[354119685,1740259833887,-678.26,0.00013698,2]
[354119686,1740259833896,-500.0,0.00013698,2]
[354119687,1740259833906,-500.0,0.00013698,2]
[354119688,1740259833916,-500.0,0.00013698,2]
[354119689,1740259833927,-500.0,0.00013698,2]
[354119690,1740259833937,-500.0,0.00013698,2]
[354119691,1740259833946,-500.0,0.00013698,2]
[354119692,1740259833955,-500.0,0.00013698,2]
[354119693,1740259833965,-500.0,0.00013698,2]